Cogmind - Beta 15 @@@ ROGUE MODE // 2025.08.25 @ 09:59:55 Player: shapeshifter Result: Destroyed by G-47 Trooper with Particle Gun Performance ------------- Evolutions (1) 500 Regions Visited (5) 1000 Robots Destroyed (79) 395 Value Destroyed (1553) 1553 Prototype IDs (32) 640 Alien Tech Used (0) 0 Bonus (300) 300 TOTAL SCORE: 4388 Bonus ------- Aligned with FarCom 300 Cogmind --------- Core Integrity 0/400 Matter 184/300 Energy 170/170 System Corruption 0% Temperature Warning (354) Movement Walking (210) Ox1 Location -8/Mines Parts ------- > --- POWER (1) -------- Light Neutrino Core > --- PROPULSION (3) --- Makeshift Leg Makeshift Leg Makeshift Leg > --- UTILITY (2) ------ Huge Storage Unit Hardened Light Armor Plating > --- WEAPON (3) ------- Minigun Minigun 8R-AWN's Boregun > --- INVENTORY (25) --- Makeshift Power Source Makeshift Power Source Makeshift Leg Advanced Myomer Leg Experimental Heat Sink High-capacity Storage Unit Humpback High-capacity Matter Pod (31) Experimental Targeting Computer Improved Target Analyzer Experimental Core Analyzer Improved Armor Integrity Analyzer EX Chip 1 EX Chip 1 EX Chip 2 Advanced Recalibrator Minigun Minigun Minigun 8R-AWN's Boregun Makeshift Axe Deploy-a-Sentry Peak State ------------ > --- POWER ------------ Light Neutrino Core > --- PROPULSION ------- Makeshift Leg Makeshift Leg Makeshift Leg > --- UTILITY ---------- Huge Storage Unit System Purifier > --- WEAPON ----------- 8R-AWN's Boregun > --- INVENTORY -------- Makeshift Power Source Makeshift Power Source Makeshift Leg Makeshift Leg Advanced Myomer Leg Experimental Heat Sink High-capacity Storage Unit High-capacity Matter Pod Experimental Targeting Computer Improved Target Analyzer Experimental Core Analyzer Improved Armor Integrity Analyzer Medium Armor Plating Hardened Light Armor Plating Advanced Recalibrator Minigun Minigun Minigun Minigun Minigun 8R-AWN's Boregun Makeshift Axe Deploy-a-Sentry [Rating: 49] Favorites ----------- Power Heavy Ion Engine Engine Heavy Ion Engine Power Core Light Neutrino Core Propulsion Light Treads Treads Light Treads Leg Makeshift Leg Wheel Wheel Utility Medium Armor Plating Device Seismic Detector Storage High-capacity Storage Unit Hackware Hacking Suite Protection Medium Armor Plating Weapon Minigun Energy Gun EM Pulse Gun Ballistic Gun Minigun Launcher Rocket Launcher Slashing Weapon Makeshift Axe Build | -11 -10 -9 -9 -9 -8 ------- Run | Yrd Mat Mat Min Exi Min Slots Evolved 2 | . . 2 . . . Power . | . . . . . . Propulsion 1 | . . 1 . . . Utility . | . . . . . . Weapon 1 | . . 1 . . . Parts Attached 63 | 7 3 23 5 24 1 Power 9 | 1 1 3 2 2 . Engine 8 | 1 1 3 2 1 . Core 1 | . . . . 1 . Reactor . | . . . . . . Propulsion 18 | 2 . 7 1 8 . Treads 12 | 2 . 6 1 3 . Leg 5 | . . . . 5 . Wheel 1 | . . 1 . . . Hover . | . . . . . . Flight . | . . . . . . Utility 16 | 2 . 6 1 6 1 Device 3 | 1 . . . 2 . Storage 4 | 1 . 2 . 1 . Processor . | . . . . . . Hackware 1 | . . 1 . . . Protection 8 | . . 3 1 3 1 Artifact . | . . . . . . Weapon 20 | 2 2 7 1 8 . Energy Gun 3 | 1 . 2 . . . Energy Cannon . | . . . . . . Ballistic Gun 15 | 1 2 5 . 7 . Ballistic Cannon . | . . . . . . Launcher 1 | . . . . 1 . Special Weapon . | . . . . . . Impact Weapon . | . . . . . . Slashing Weapon 1 | . . . 1 . . Piercing Weapon . | . . . . . . Special Melee Weapon . | . . . . . . Unidentified Prototypes 9 | . . 4 . 5 . Parts Lost 21 | . . 7 . 12 2 Power . | . . . . . . Propulsion 9 | . . 3 . 5 1 Utility 5 | . . 1 . 3 1 Weapon 7 | . . 3 . 4 . Highest Loss Streak 8 | . . 4 . 8 2 To Critical Strikes 6 | . . . . 6 . Average Backups 15 | 3 6 12 20 19 23 Power 1 | 1 1 1 1 1 2 Propulsion 2 | 1 2 2 4 2 3 Utility 4 | . 1 4 4 6 13 Weapon 5 | 1 1 3 8 8 5 Tool/Special . | . . . . . . Unused Backups 37 | . 3 8 3 8 15 Power 8 | . 1 1 . 4 2 Propulsion 2 | . . 1 . . 1 Utility 20 | . 1 4 1 4 10 Weapon 6 | . 1 2 1 . 2 Tool/Special 1 | . . . 1 . . Average Slot Usage (%) 88 | . 99 94 100 79 100 Engine 9 | . 14 11 11 7 . Core 1 | . . . . 3 11 Treads 27 | . 28 31 33 23 . Leg 3 | . . . . 7 33 Device 1 | . 14 1 . . . Storage 11 | . 14 11 11 11 11 Protection 8 | . . 7 11 10 11 Energy Gun 1 | . 8 1 . . . Ballistic Gun 21 | . 19 28 32 13 33 Peak Build Rating 49 | 7 8 20 20 49 48 Average Rating 19 | 4 7 14 19 25 47 On Entrance 16 | . 7 8 20 14 48 Naked Turns . | . . . . . . Heaviest Build 107 | 15 15 63 63 107 . Greatest Support 63 | 40 40 63 63 63 . Greatest Overweight (x) 5 | . . 5 . 2 . Average Overweight (x) . | . . . . . . Largest Inventory Capacity 25 | 8 8 20 20 25 25 Average Capacity 19 | 7 8 17 20 22 25 Most Carried 25 | 7 8 20 20 25 25 Average Carried 16 | 3 6 12 19 19 24 Final Capacity 25 | 8 8 20 20 25 25 Final Carried 25 | 4 8 20 20 25 23 Class Distribution -------------------- 35% | Scavenger-Tank 26% | Scavenger-Mutant 23% | Mutant 9% | Scavenger-Gunner 5% | Tank Dominant Class ---------------- Mutant | -10/Materials Scavenger-Tank | -9/Materials Scavenger-Tank | -9/Mines Scavenger-Mutant | -9/Exiles Scavenger-Tank | -8/Mines Resources | -11 -10 -9 -9 -9 -8 ----------- Run | Yrd Mat Mat Min Exi Min Matter Collected 2820 | 288 71 942 267 1252 . Remotely . | . . . . . . Salvage Created 2971 | 124 281 1409 445 614 98 Parts 225 | 9 20 94 28 70 4 Haulers Intercepted 5 | . 1 4 . . . Recyclers Shooed 2 | 1 . 1 . . . Parts Field Recycled . | . . . . . . Retrieved Matter . | . . . . . . Parts Self-Destructed . | . . . . . . Prevented . | . . . . . . Kills | -11 -10 -9 -9 -9 -8 ------- Run | Yrd Mat Mat Min Exi Min Combat Hostiles Destroyed 55 | . 6 29 12 6 2 Guns 51 | . 6 29 12 2 2 AOE 4 | . . . . 4 . Classes Destroyed 14 | 2 4 5 . 3 . Worker 3 | . . 3 . . . Tunneler 2 | 2 . . . . . Hauler 5 | . 1 4 . . . Recycler 3 | 1 1 1 . . . Operator 1 | . 1 . . . . Turret 1 | . . . . 1 . Watcher 4 | . . 4 . . . Swarmer 20 | . 5 12 3 . . Grunt 18 | . 1 8 7 . 2 Brawler 2 | . . 1 1 . . Duelist 3 | . . 2 1 . . Sentry 6 | . . 6 . . . Zionite 8 | . . . . 8 . Assembled 5 | . . . . 5 . Best Kill Streak 10 | 2 3 10 6 7 2 Combat Bots Only 7 | . 3 7 6 4 2 Max Kills in Single Turn 2 | 1 2 2 2 2 1 Gunslinging 1 | . 1 1 1 . . Exploded 2 | . . . . 2 . Melee . | . . . . . . Uniques/NPCs Destroyed 4 | . . . . 4 . 8R-AWN (-9/Exiles) EX-DEC (-9/Exiles) EX-BIN (-9/Exiles) EX-HEX (-9/Exiles) Combat | -11 -10 -9 -9 -9 -8 -------- Run | Yrd Mat Mat Min Exi Min Hostile Shots Fired 330 | . 44 129 29 102 26 Missed 69 | . 12 35 9 9 4 Hits 261 | . 32 94 20 93 22 Melee 8 | . . 6 2 . . Projectile 253 | . 32 88 18 93 22 Critical Strikes 40 | . . 3 . 36 1 Damage Taken 4172 | . 264 1238 249 2065 356 Core 452 | . 48 119 30 197 58 Absorbed by Shields . | . . . . . . Core Remaining (%) 90 | 100 80 . . . . Volleys Fired 272 | 6 20 118 19 100 9 Largest 3 | 2 2 3 3 3 3 Hottest 96 | 60 60 96 71 75 80 Shots Fired 612 | 12 40 327 57 154 22 Gun 601 | 12 40 327 57 143 22 Cannon . | . . . . . . Launcher 11 | . . . . 11 . Special . | . . . . . . Kinetic 571 | 6 27 316 57 143 22 Thermal 11 | . . 11 . . . Explosive 11 | . . . . 11 . Electromagnetic 19 | 6 13 . . . . Robot Hit Streak 16 | 2 10 11 16 8 6 Robot Miss Streak 9 | 1 7 9 2 4 2 Penetration Max 1 | . . . . 1 . Secondary Targets 13 | . 2 6 3 . 2 Max Gunslinging Chain 1 | . 1 1 1 . 1 Shots Hit Robots 359 | 6 22 190 35 91 15 Core Hits 151 | 3 12 67 17 46 6 Critical Kills 5 | . . 1 . 4 . Critical Parts Destroyed 12 | . . 2 . 9 1 Critical Strikes 20 | . . 4 . 15 1 Burn 1 | . . 1 . . . Destroy 19 | . . 3 . 15 1 Melee Attacks 12 | . . . 6 6 . Impact . | . . . . . . Slashing 12 | . . . 6 6 . Piercing . | . . . . . . Sneak Attacks . | . . . . . . Combat Hostiles . | . . . . . . Follow-up Attacks . | . . . . . . Damage Inflicted 5593 | 89 266 2290 569 2121 258 Guns 4801 | 89 266 2180 569 1439 258 Cannons . | . . . . . . Explosions 354 | . . 110 . 244 . Melee 438 | . . . . 438 . Ramming . | . . . . . . Kinetic 4492 | 36 148 2042 569 1439 258 Thermal 138 | . . 138 . . . Explosive 354 | . . 110 . 244 . Electromagnetic 171 | 53 118 . . . . Impact . | . . . . . . Slashing 438 | . . . . 438 . Piercing . | . . . . . . Highest Corruption 6 | . . 1 1 6 . Average Corruption 1 | . . 1 1 2 . Corruption Purged 6 | . . . . 6 . Corruption Blocked . | . . . . . . Effects 39 | . . 6 5 28 . Message Errors 12 | . . 3 2 7 . Matter Fused 8 | . . 1 1 6 . Heat Flow Errors 3 | . . . . 3 . Energy Discharges 6 | . . . . 6 . Data Loss (minor) 6 | . . 1 1 4 . Data Loss (major) 1 | . . . 1 . . Misfires 3 | . . 1 . 2 . Overload Shots . | . . . . . . Overflow Damage 76 | . . 76 . . . Projectiles . | . . . . . . Explosions 76 | . . 76 . . . Melee . | . . . . . . Knockbacks . | . . . . . . Impact . | . . . . . . Kinetic . | . . . . . . Secondary . | . . . . . . Self-Inflicted Damage 195 | . . 97 . 98 . Shots 5 | . . 1 . 4 . Rammed . | . . . . . . Targets Rammed . | . . . . . . Kicked . | . . . . . . Crushed . | . . . . . . Highest Temperature 345 | . 6 128 151 323 345 Average Temperature 77 | . 6 34 52 162 226 Received Heat Transfer 627 | . 18 309 84 . 216 Effects 2 | . . . . 1 1 Energy Bleed 1 | . . . . 1 . Interference 1 | . . . . . 1 Siege Activations . | . . . . . . Martial Activations . | . . . . . . Shielding Activations . | . . . . . . Robots Disrupted . | . . . . . . Combat Hostiles . | . . . . . . Robots Corrupted . | . . . . . . Combat Hostiles . | . . . . . . Parts Fried . | . . . . . . Impact Corruptions . | . . . . . . Robots Melted . | . . . . . . Combat Hostiles . | . . . . . . Parts Melted 1 | . . 1 . . . Heat Transferred 370 | . . 370 . . . Parts Sabotaged . | . . . . . . Parts Stolen . | . . . . . . Parts Stripped . | . . . . . . Power Chain Reactions . | . . . . . . Alert | -11 -10 -9 -9 -9 -8 ------- Run | Yrd Mat Mat Min Exi Min Maximum Alert Level 1 | . . 1 1 . . Low Security (%) 75 | 100 100 65 83 . 100 Level 1 24 | . . 34 16 . . Level 2 . | . . . . . . Level 3 . | . . . . . . Level 4 . | . . . . . . Level 5 . | . . . . . . High Security . | . . . . . . Max Security . | . . . . . . Peak Influence 329 | 10 90 329 250 . 45 Initial 110 | . . 17 110 . . Average 122 | 1 25 144 144 . 31 Influence Increases 1397 | 15 170 877 270 . 65 Destroy 0b10 Robot/C 980 | . 120 580 240 . 40 Destroy 0b10 Robot/NC 90 | 15 15 60 . . . Destroy Leader 218 | . 32 146 30 . 10 Successful Hack 10 | . 3 7 . . . Disable Machine 30 | . . 15 . . 15 Destroy Structure 24 | . . 24 . . . Lose Combat Pursuer 45 | . . 45 . . . Influence Decreases 1362 | 15 127 636 500 54 30 Entered New Map 254 | . . 26 174 54 . Time Decay 1018 | 15 127 540 326 . 10 Lost Part 90 | . . 70 . . 20 Squads Dispatched 3 | . 2 1 . . . Investigation 1 | . 1 . . . . Extermination . | . . . . . . Reinforcement 2 | . 1 1 . . . Assault . | . . . . . . Garrison . | . . . . . . Intercept . | . . . . . . Searches Triggered . | . . . . . . Construction Impeded . | . . . . . . Haulers Reinforced . | . . . . . . Active Scanning Responses . | . . . . . . Cargo Convoy Interrupts . | . . . . . . Stealth | -11 -10 -9 -9 -9 -8 --------- Run | Yrd Mat Mat Min Exi Min Distress Signals 3 | . . 3 . . . Communications Jammed . | . . . . . . Distress Signals . | . . . . . . Times Spotted 80 | . 9 39 12 17 3 Peak Tracking Total 9 | . 3 7 3 9 3 Tactical Retreats 4 | . . 3 . 1 . Traps | -11 -10 -9 -9 -9 -8 ------- Run | Yrd Mat Mat Min Exi Min Traps Triggered 2 | . 1 1 . . . Indirectly . | . . . . . . Trap Hack Attempts . | . . . . . . Triggered . | . . . . . . Disarmed . | . . . . . . Reprogrammed . | . . . . . . Reused . | . . . . . . Traps Extracted . | . . . . . . Installed . | . . . . . . Triggered . | . . . . . . Machines | -11 -10 -9 -9 -9 -8 ---------- Run | Yrd Mat Mat Min Exi Min Machines Disabled 20 | . . 1 . 18 1 Max in Single Turn 2 | . . 1 . 2 1 Machines Repaired . | . . . . . . Machines Dismantled . | . . . . . . Machines Sabotaged . | . . . . . . Overloaded Fab Kills . | . . . . . . Hacking | -11 -10 -9 -9 -9 -8 --------- Run | Yrd Mat Mat Min Exi Min Machines Accessed 11 | . 2 7 . 2 . Terminals 8 | . 2 6 . . . Fabricators . | . . . . . . Repair Stations . | . . . . . . Recycling Units 1 | . . 1 . . . Scanalyzers . | . . . . . . Garrison Access . | . . . . . . Total Hacks 21 | . 5 14 . 2 . Successful 9 | . 2 5 . 2 . Failed 12 | . 3 9 . . . Catastrophic . | . . . . . . Database Lockouts . | . . . . . . Manual 17 | . 4 12 . 1 . Terminals 18 | . 5 13 . . . Fabricators . | . . . . . . Repair Stations . | . . . . . . Recycling Units 1 | . . 1 . . . Scanalyzers . | . . . . . . Garrison Access . | . . . . . . Terminal Hacks 6 | . 1 3 . 2 . Record 1 | . . . . 1 . Branch Access Points 1 | . . 1 . . . Locate Traps 1 | . 1 . . . . Hauler Manifests 1 | . . 1 . . . Registered Components 1 | . . 1 . . . Proto ID Catalog 1 | . . . . 1 . Fabricator Hacks . | . . . . . . Repair Station Hacks . | . . . . . . Recycling Unit Hacks 1 | . . 1 . . . Report Inventory 1 | . . 1 . . . Scanalyzer . | . . . . . . Garrison Access Hacks . | . . . . . . Unauthorized Hacks 2 | . 1 1 . . . Terminals 2 | . 1 1 . . . Botnet 2 | . 1 1 . . . Fabricators . | . . . . . . Repair Stations . | . . . . . . Recycling Units . | . . . . . . Scanalyzers . | . . . . . . Garrison Access . | . . . . . . Data Cores Recovered . | . . . . . . Used . | . . . . . . Hacking Detections 8 | . 2 6 . . . Full Trace Events 1 | . . 1 . . . Feedback Events . | . . . . . . Feedback Blocked . | . . . . . . Robot Schematics Acquired . | . . . . . . Robots Built . | . . . . . . Authchips . | . . . . . . Time . | . . . . . . Total Robot Build Rating . | . . . . . . Part Schematics Acquired . | . . . . . . Parts Built . | . . . . . . Authchips . | . . . . . . Time . | . . . . . . Total Part Build Rating . | . . . . . . Parts Repaired . | . . . . . . Time . | . . . . . . Parts Recycled . | . . . . . . Recycled Matter . | . . . . . . Retrieved Matter . | . . . . . . Retrieved Components . | . . . . . . Parts Scanalyzed . | . . . . . . Part Schematics Acquired . | . . . . . . Parts Damaged . | . . . . . . Bothacking | -11 -10 -9 -9 -9 -8 ------------ Run | Yrd Mat Mat Min Exi Min Used RIF Installer . | . . . . . . Robots Hacked . | . . . . . . Non-combat . | . . . . . . Combat . | . . . . . . Robot Hacks Applied . | . . . . . . Relay Couplers Released . | . . . . . . Fabnet Peak Effective % . | . . . . . . Robots Rewired . | . . . . . . Allies Hacked . | . . . . . . Hacks Repelled . | . . . . . . Allies | -11 -10 -9 -9 -9 -8 -------- Run | Yrd Mat Mat Min Exi Min Total Allies . | . . . . . . Largest Group . | . . . . . . Highest-Rated Group . | . . . . . . Highest-Rated Ally . | . . . . . . Total Orders . | . . . . . . Ally Attacks . | . . . . . . Total Damage . | . . . . . . Kills . | . . . . . . Allies Corrupted . | . . . . . . Allies Melted . | . . . . . . Intel | -11 -10 -9 -9 -9 -8 ------- Run | Yrd Mat Mat Min Exi Min Active Infowar (turns) 615 | 11 378 226 . . . Seismic 615 | 11 378 226 . . . Robot Analysis Total . | . . . . . . Derelict Logs Recovered 2 | . . . 2 . . Drone Launches . | . . . . . . Drone Recoveries . | . . . . . . Exploration | -11 -10 -9 -9 -9 -8 ------------- Run | Yrd Mat Mat Min Exi Min Turns Passed 5079 | 122 378 1657 730 2166 26 Spaces Moved 2144 | 66 189 755 380 754 . Core 17 | 17 . . . . . Treads 1918 | 49 189 737 380 563 . Legs 191 | . . . . 191 . Wheels 18 | . . 18 . . . Hover . | . . . . . . Flight . | . . . . . . Fastest Speed 50 | 50 160 155 160 160 . Average Speed 184 | 131 160 160 160 230 . Slowest Speed 320 | 160 160 240 160 320 . Overloaded Moves . | . . . . . . Propulsion Burnouts . | . . . . . . Robots Hopped . | . . . . . . Potential Cave-ins . | . . . . . . Cave-ins Triggered . | . . . . . . Exploration Rate (%) 43 | 5 39 56 71 89 3 Regions Visited 5 Branch Regions 3 Pre-discovered Areas 3 | . . . 2 1 . Known Exits Taken 1 | . . 1 . . . Unknown Exits Taken 4 | 1 1 . 1 1 . Scrap Searched 2 | . . . 2 . . Spaces Dug . | . . . . . . Terrain Destroyed 71 | . . 27 . 43 1 Melee . | . . . . . . Projectile 10 | . . . . 9 1 AOE 61 | . . 27 . 34 . Terrain Rammed . | . . . . . . Walls Destroyed . | . . . . . . Machines Disabled . | . . . . . . Actions | -11 -10 -9 -9 -9 -8 --------- Run | Yrd Mat Mat Min Exi Min Total 2846 | 89 229 993 463 1061 11 Wait 185 | . 4 27 40 114 . Move 2139 | 65 188 754 379 753 . Hop . | . . . . . . Pick Up 99 | 11 9 42 3 34 . Fast Attach 2 | . . 1 1 . . Attach 43 | 7 1 12 . 21 2 Detach 3 | . . . 2 1 . Swap 39 | . 2 15 5 17 . Drop 52 | . 5 24 8 15 . Fire 272 | 6 20 118 19 100 9 Melee 12 | . . . 6 6 . Ram . | . . . . . . Kick . | . . . . . . Crush . | . . . . . . Escape Stasis . | . . . . . . Rewire . | . . . . . . Trap . | . . . . . . Miscellaneous . | . . . . . . Route ------- -11/Scrapyard -10/Materials (discovered 2 exits: *Mat / [*Min]) -9/Materials (discovered 4 exits: [*Mat x2] / *Min x2) -9/Mines (discovered 2 exits: [*Mat] / *Exi) -9/Exiles -8/Mines History --------- Turn | Location | Event 3 | -11/Scrapyard | Discovered new exit (range 16) 123 | -11/Scrapyard | Entered Materials 281 | -10/Materials | Discovered new exit (range 13) 304 | -10/Materials | Build established: Mutant 460 | -10/Materials | Discovered new exit (range 16) 501 | -10/Materials | Entered another Materials area 501 | -9/Materials | Evolved 2 slots: Propulsion x1, Weapon x1 733 | -9/Materials | Destroyed 7 combat bots 763 | -9/Materials | Lost 4 parts (2n1u1w) 819 | -9/Materials | Identified exit to Mines 1260 | -9/Materials | Discovered new exit (range 14) 1649 | -9/Materials | Build established: Scavenger-Tank 1952 | -9/Materials | Discovered new exit (range 11) 2158 | -9/Materials | Entered Mines 2206 | -9/Mines | Learned 4 Materials zone layouts 2431 | -9/Mines | Received a Rocket Launcher from a helpful Derelict 2459 | -9/Mines | A weapon hastily lodged in a ceiling crevice suddenly fell to the ground 2531 | -9/Mines | Excavation squad dispatched 2531 | -9/Mines | A large section of the Mines collapsed 2722 | -9/Mines | Discovered new exit (range 9) 2736 | -9/Mines | Learned location of Storage (-8) 2877 | -9/Mines | Deemed a non-threat by the Exiles lab entrance 2877 | -9/Mines | Discovered new exit (range 5) 2888 | -9/Mines | Entered Exiles 2927 | -9/Exiles | Met 8R-AWN 3018 | -9/Exiles | Met EX-HEX 3149 | -9/Exiles | Met EX-DEC 3176 | -9/Exiles | Build established: Mutant 3190 | -9/Exiles | Learned location of Zion (-7) 3386 | -9/Exiles | Met EX-BIN 3419 | -9/Exiles | Aligned with FarCom system 3422 | -9/Exiles | Given EX-Vault access code 3482 | -9/Exiles | Opened EX-Vault 3544 | -9/Exiles | Warned to stay clear of 0b10 Research branches 3653 | -9/Exiles | Attacked by the Exiles 3818 | -9/Exiles | Core integrity fell below 50% 3828 | -9/Exiles | Destroyed 8R-AWN 3857 | -9/Exiles | Lost 8 parts (4n2u2w) 3897 | -9/Exiles | Found Prototype Ballistic Gun 3901 | -9/Exiles | Found Prototype Ballistic Gun 3916 | -9/Exiles | Found Prototype Processor 4017 | -9/Exiles | Identified 8R-AWN's Boregun (x2) 4046 | -9/Exiles | Lost 3 parts (1u2w) 4218 | -9/Exiles | Core integrity fell below 20% 4239 | -9/Exiles | Destroyed EX-DEC 4257 | -9/Exiles | Destroyed EX-BIN 4278 | -9/Exiles | Build established: Scavenger-Mutant 4278 | -9/Exiles | Destroyed EX-HEX 4469 | -9/Exiles | Found Deploy-a-Sentry 4492 | -9/Exiles | Found Prototype Processor 4575 | -9/Exiles | Found Prototype Device 4578 | -9/Exiles | Identified System Purifier 5029 | -9/Exiles | Discovered new exit (range 14) 5054 | -9/Exiles | Left Exiles lab with Deploy-a-Sentry 5054 | -9/Exiles | Entered Mines 5080 | -8/Mines | Destroyed by G-47 Trooper with Particle Gun Last Messages --------------- 05057_ Core Extractor disabled. 05057_ HV Slug penetrates Core Extractor. 05058_ Critical hit (Burn: +37). 05060_ G-50 Soldier destroyed. 05060_ Switching to secondary target: G-47 Trooper. 05060_ HV Slug penetrates G-47 Trooper. 05060_ G-47 Trooper suffers critical hit (Destroy). 05060_ Destroyed Aluminum Leg. 05060_ HV Slug penetrates Wall. 05063_ HV Slug penetrates G-47 Trooper. 05063_ HV Slug penetrates Wall. 05066_ Overheating: System interference. 05066_ 8R-AWN's Boregun temporarily disabled. 05070_ Med. Armor Plating destroyed. 05071_ Mak. Leg destroyed. 05073_ G-47 Trooper destroyed. 05073_ Switching to secondary target: G-47 Trooper. Map ----- +----------------------------------------------------+ | ???????????????????????????????????????????????? | | ???????????????????????????????????????????????? | | ???????????????????????????????????????????????? | | ???????????????????????????????????????????????? | | ???????????????????????????????????????????????? | | ???????????????????????????????????????????????? | | ???????????????????????????????????????????????? | | ???????????????????????????????????????????????? | | ???????????????????????????????????????????????? | | ???????????????????????????????????????????????? | | ???????????????????????????????????????????????? | | ???????????????????????????????????????????????? | | ???????????????????????????????????????????????? | | ???????????????????????????????????????????????? | | ???????????????????????????????????????????????? | | ???????????????????????????????????????????????? | | ???????????????????????????????????????????????? | | ???????????????????????????????????????????????? | | ???????????????????????????????????????????????? | | ????????????????????############???????????????? | | ????????????????????# ###?????????????? | | ????????????????????# ??????????????? | | ????????????????????# g= #???????????????? | | ????????????????????# *%= #???????????????? | | ????????????????????# %* " #???????????????? | | ????????????????????# @ """ #???????????????? | | ????????????????????# """ #???????????????? | | ????????????????????# #???????????????? | | ????????????????????############???????????????? | | ???????????????????????????????????????????????? | | ???????????????????????????????????????????????? | | | | | | | | | | | | | | | | | | | | | | | | | | | | | | | | | | | | | | | +----------------------------------------------------+ Best States ------------- Heat Dissipation 28 Energy Generation 19 Energy Capacity 280 Matter Stores 300 Matter Capacity 300 Sight Range 16 Terrain Scan Density 10 Armor Coverage 225 Evasion (%) 50 Recoil Reduction 3 Offensive Hacking 10 Item Schematics ----------------- None Robot Schematics ------------------ None Fabricated ------------ Nothing Repaired ---------- Nothing Alien Tech Used ----------------- None Achievements -------------- None Challenges ------------ None Game ------ Seed CoordinationFocalStorage Manual? 0 Play Time 00:34:21 Cumulative 199.3 hours Start 2025.08.25 @ 09:23:50 End 2025.08.25 @ 09:59:55 Sessions 3 Manual Loads 0 Difficulty Rogue Special Mode None Game No. 307 Rogue 307 Adventurer 0 Explorer 0 Win Type - Total 4 Types 3/0/1/0/0/0/0/0/0/0 Lore% 79 Gallery% 75 Achievement% 55 Wizard Run 0 Options --------- Layout 1 ASCII 0 Keyboard 0 Movement Mouse Keybinds 0 Fullscreen 1 Font 24/Smallcaps Map View 50x40 Zoom Use 0% Tactical HUD 1 Map Filters NONE Filters NONE Steam 1 RUN: 9e749cf6-85bb-4926-85e1-f9a4cb071cfe